bitfinex-derivatives/quotes_ETHF0:USTF0_20260116
["timestamp","ask_amount","ask_price","bid_price","bid_amount"]
[1768578447075,3.60101889,3259.6,3257.4,3.08008499]
[1768578447383,3.60101889,3259.0,3257.4,0.01008499]
[1768578447683,3.59501189,3259.0,3257.4,0.01008499]
[1768578447888,0.15349,3258.7,3257.4,0.01008499]
[1768578448390,1.88472079,3259.4,3257.4,0.01008499]
[1768578448585,0.15348,3258.8,3257.4,0.01008499]
[1768578448791,0.15345,3259.5,3257.4,0.01008499]
[1768578448987,0.15345,3259.5,3257.4,3.28688496]
[1768578449193,0.15345,3259.5,3257.5,3.27679997]
[1768578449395,0.15344,3259.6,3257.5,6.54479997]
[1768578449581,3.26947318,3258.9,3257.7,1.34427086]
[1768578449781,3.26947318,3258.7,3256.5,3.27679997]
[1768578450093,0.15346,3259.2,3257.2,3.27679997]
[1768578450289,0.15346,3259.2,3257.4,3.27679997]
[1768578450483,0.15344,3259.7,3257.5,6.337]
[1768578450683,0.15344,3259.7,3257.5,0.00277573]
[1768578450884,0.15345,3259.6,3257.5,0.00277573]
[1768578451193,3.26947318,3259.9,3257.6,6.337]
[1768578451194,0.15345,3259.5,3257.6,6.337]
[1768578451389,0.15346,3259.4,3257.5,0.00277573]
[1768578451584,0.15349,3258.7,3257.5,0.00277573]
[1768578451786,0.1535,3258.3,3255.8,0.15362]
[1768578451988,0.1535,3258.3,3255.7,6.336]
[1768578451989,0.1535,3258.3,3255.9,0.15361]
[1768578452185,3.26947318,3258.5,3256.0,45.723]
[1768578452383,0.15353,3257.8,3256.0,43.87]
[1768578452580,0.15353,3257.8,3256.1,3.27679997]
[1768578452782,0.15658492,3257.8,3256.1,3.27947944]
[1768578453188,0.15658492,3257.8,3256.2,3.27679997]
[1768578453587,0.15658492,3257.8,3256.1,0.00267947]
[1768578453988,0.00305492,3257.8,3256.1,3.27947944]
[1768578454189,0.1535,3258.5,3256.3,3.43038997]
[1768578454390,2.1571659,3259.7,3256.3,3.27679997]
[1768578454391,0.15351,3258.2,3256.3,3.27679997]
[1768578454799,1.88472079,3259.5,3256.5,3.27679997]
[1768578454997,1.34885741,3259.4,3256.5,3.27679997]
[1768578455187,0.15348,3258.8,3256.6,3.266]
[1768578455387,0.15349,3258.6,3256.7,3.27679997]
[1768578455590,0.1535,3258.4,3256.3,3.27679997]
[1768578455795,1.03269003,3258.3,3256.3,3.27679997]
[1768578455994,0.87919003,3258.2,3256.3,3.27679997]
[1768578456292,0.1535,3258.3,3256.3,3.27679997]
[1768578456498,0.15347,3259.0,3256.6,3.27679997]
[1768578456692,0.87959247,3258.9,3256.8,3.27679997]
[1768578456899,0.15347,3259.0,3257.0,3.27679997]
[1768578457200,0.15347,3259.0,3257.2,3.27679997]
[1768578457402,0.00217692,3259.4,3257.2,3.27679997]
[1768578457602,0.00217692,3259.4,3257.5,3.27679997]
[1768578458003,0.88063625,3259.3,3257.5,3.27679997]
[1768578458203,1.34615386,3259.2,3257.5,3.27679997]
[1768578458400,0.88063625,3259.1,3257.5,3.27679997]
[1768578458599,0.15346,3259.2,3257.5,3.27679997]
[1768578458793,0.8805572,3259.1,3257.5,3.27679997]
[1768578458995,0.88039514,3259.0,3256.9,3.27679997]
[1768578459203,0.15349,3258.6,3256.9,3.27679997]
[1768578459398,0.1535,3258.4,3256.9,3.27679997]
[1768578459609,0.1535,3258.4,3256.3,6.34779997]
[1768578459906,4.87879915,3259.2,3256.3,6.34779997]
[1768578459907,5.15579942,3259.2,3256.4,3.27679997]
[1768578460099,0.15347,3259.0,3256.6,3.27679997]
[1768578460293,0.1535,3258.4,3256.6,3.27679997]
[1768578460498,0.87864069,3258.3,3256.6,3.27679997]
[1768578460803,2.91847693,3258.2,3256.1,3.27947944]
[1768578461004,0.87864069,3258.1,3256.1,3.27947944]
[1768578461192,0.15353,3257.7,3256.1,3.27947944]
[1768578461599,0.15354,3257.6,3256.1,3.27947944]
[1768578461802,0.15354,3257.6,3256.1,0.00267947]
[1768578462192,0.87808896,3257.5,3255.2,40.8]
[1768578462397,1.88632624,3257.2,3255.1,3.27679997]
[1768578462603,0.87808896,3257.1,3255.1,3.27679997]
[1768578462806,0.87774724,3257.0,3255.1,3.27679997]
[1768578463001,1.88632624,3257.2,3255.1,3.27679997]
[1768578463196,0.15353,3257.9,3255.4,0.15364]
[1768578463403,0.00328427,3257.2,3255.5,3.27679997]
[1768578463602,0.00328427,3257.2,3255.5,3.43042997]
[1768578464209,0.00328427,3257.2,3255.6,3.27679997]
[1768578464712,0.15349,3258.6,3256.2,3.27679997]
[1768578465010,0.87758739,3258.5,3256.2,3.27679997]
[1768578465210,0.87758739,3258.4,3256.4,1.88632624]
[1768578465411,0.15349,3258.6,3256.5,3.27679997]
[1768578465707,1.88632624,3258.4,3256.5,3.27679997]
[1768578465906,0.15742908,3258.6,3256.5,3.27679997]
[1768578466096,0.8781022,3258.5,3256.5,3.27679997]
[1768578466292,0.15742908,3258.6,3256.5,3.27679997]
[1768578466506,0.87827857,3258.5,3256.5,3.27679997]
[1768578466700,0.15742908,3258.6,3256.5,3.27679997]
[1768578466904,0.87825295,3258.5,3256.5,3.27679997]
[1768578467100,0.1535,3258.3,3256.5,3.27679997]
[1768578467302,0.15351,3258.2,3256.5,3.27679997]
[1768578467806,0.15352,3257.9,3256.5,3.27679997]
[1768578468009,1.89026532,3258.6,3256.5,3.27679997]
[1768578468203,0.87750574,3258.5,3256.5,3.27679997]
[1768578468503,0.87750574,3258.4,3256.5,3.27679997]
[1768578468808,0.00393908,3258.6,3256.5,3.27679997]
[1768578469102,0.87775745,3258.5,3256.5,3.27679997]
[1768578469297,0.00393908,3258.6,3256.5,3.43038997]
[1768578470108,0.00393908,3258.6,3256.6,0.15358]
[1768578470310,0.00393908,3258.6,3256.7,3.27679997]
[1768578470506,0.00393908,3258.6,3256.8,0.15357]
[1768578470697,0.00393908,3258.6,3256.8,3.43036997]
[1768578470898,0.00393908,3258.6,3256.3,3.27679997]
[1768578471103,0.87767938,3258.5,3256.3,3.27679997]
[1768578471406,0.1535,3258.3,3256.3,3.27679997]
[1768578471603,0.87767938,3258.2,3256.3,3.27679997]
[1768578472202,0.87767938,3258.2,3256.3,3.43039997]
[1768578472401,0.00393908,3258.6,3256.3,3.43039997]
[1768578472598,1.88632624,3258.4,3256.3,3.43039997]
[1768578472803,1.88632624,3258.4,3256.3,3.27679997]
[1768578472804,0.87829763,3258.3,3256.3,3.27679997]
[1768578473002,1.03180763,3258.3,3256.3,3.27679997]
[1768578473207,0.87829763,3258.2,3256.3,3.27679997]
[1768578473605,0.15353,3257.8,3255.7,3.36717453]
[1768578473807,0.87829763,3257.7,3255.7,3.36717453]
[1768578474205,0.1535,3258.5,3256.2,3.36717453]
[1768578474404,0.87872349,3258.4,3256.2,3.36717453]
[1768578474608,0.87872349,3258.3,3256.2,3.36717453]
[1768578474919,0.1535,3258.5,3256.3,3.36717453]
[1768578475115,0.87877067,3258.4,3256.3,3.36717453]
[1768578475617,0.87877067,3258.4,3256.3,3.52076453]
[1768578475914,0.00393908,3258.6,3256.5,3.36717453]
[1768578476218,0.00393908,3258.6,3256.5,3.52076453]
[1768578476814,0.00393908,3258.6,3256.5,6.59176453]
[1768578477121,0.00393908,3258.6,3256.6,3.36717453]
[1768578479816,0.00393908,3258.6,3256.6,3.52075453]
[1768578480023,1.60727905,3259.3,3256.8,3.36717453]
[1768578480317,0.87996342,3259.2,3257.0,3.36717453]
[1768578480510,1.88632624,3259.6,3256.9,1.88632624]
[1768578480511,0.15344,3259.7,3257.3,3.36717453]
[1768578480709,0.87996744,3259.6,3257.3,3.36717453]
[1768578481015,1.88632624,3259.2,3257.3,3.36717453]
[1768578481214,0.87995944,3259.1,3257.3,3.36717453]
[1768578481420,0.87995944,3259.0,3257.3,3.36717453]
[1768578481617,1.88632624,3258.7,3256.8,3.36717453]
[1768578481824,4.33593272,3258.6,3256.2,3.36717453]
[1768578482113,0.87995944,3258.5,3256.2,3.36717453]
[1768578482320,0.87995944,3258.4,3256.2,3.36717453]
[1768578482519,0.87995944,3258.3,3256.2,3.36717453]
[1768578482719,0.87995944,3258.2,3256.2,3.36717453]
[1768578483020,3.60946328,3258.6,3256.2,3.36717453]
[1768578483218,1.032676,3258.5,3256.2,3.52077453]
[1768578483427,5.34229952,3258.3,3256.2,3.36717453]
[1768578483622,0.879176,3258.2,3256.2,3.36717453]
[1768578483915,3.45597328,3258.3,3256.2,3.36717453]
[1768578483916,0.879176,3258.1,3256.2,3.36717453]
[1768578484120,0.879176,3258.0,3256.2,3.36717453]
[1768578484424,2.03982624,3258.4,3256.2,3.36717453]
[1768578484625,0.8794307,3258.3,3256.2,3.36717453]
[1768578484815,0.8794307,3258.2,3256.2,3.36717453]
[1768578485015,0.8794307,3258.1,3256.5,3.36717453]
[1768578485218,1.88632624,3258.7,3256.5,3.36717453]
[1768578485419,0.87896062,3258.6,3256.5,3.36717453]
[1768578485619,0.87896062,3258.5,3256.5,3.36717453]
[1768578485813,0.87896062,3258.4,3256.5,3.36717453]
[1768578486015,0.87896062,3258.3,3256.5,3.36717453]
[1768578486224,0.87896062,3258.2,3256.5,3.36717453]
[1768578486524,1.88632624,3258.5,3256.5,3.36717453]
[1768578486710,0.87877821,3258.4,3256.5,3.36717453]
[1768578486917,0.15349,3258.6,3256.5,3.36717453]
[1768578487220,1.88632624,3258.3,3256.5,3.36717453]
[1768578487726,2.03981624,3258.6,3256.5,3.36717453]
[1768578488023,0.87897151,3258.5,3256.5,3.36717453]
[1768578488227,0.87897151,3258.4,3257.4,0.00614]
[1768578488418,2.03978624,3259.3,3257.4,0.01010478]
[1768578488728,1.88632624,3258.8,3257.4,0.01010478]
[1768578488916,0.87916407,3258.7,3257.4,0.01010478]
[1768578489112,1.88632624,3258.8,3257.4,0.01010478]
[1768578489317,0.87901664,3258.7,3257.4,0.01010478]
[1768578489524,1.88632624,3258.8,3257.4,0.01010478]
[1768578489726,0.87924984,3258.7,3257.4,0.01010478]
[1768578489926,3.071,3259.3,3256.6,3.40758]
[1768578489927,1.88632624,3258.3,3256.6,3.40758]
[1768578490319,1.88632624,3258.3,3256.6,6.77475453]
[1768578490517,1.88632624,3258.8,3256.6,6.77475453]
[1768578490820,3.45597328,3259.1,3256.7,3.36717453]
[1768578490821,0.88550144,3258.7,3256.7,3.36717453]
[1768578491027,1.88632624,3259.0,3257.0,3.36717453]
[1768578491221,1.88632624,3258.5,3257.0,3.36717453]
[1768578491415,2.03979624,3259.0,3257.0,3.36717453]
[1768578491723,0.88595341,3258.9,3257.0,3.36717453]
[1768578492029,0.88595341,3258.8,3257.0,3.36717453]
[1768578492325,0.88595341,3258.7,3257.0,3.36717453]
[1768578492620,1.88632624,3259.3,3257.2,3.36717453]
[1768578492826,1.88632624,3258.8,3257.2,3.36717453]
[1768578493218,0.8862144,3258.7,3257.1,0.15356]
[1768578493419,1.88632624,3258.8,3257.1,0.15356]
[1768578493621,0.88623839,3258.7,3257.1,0.15356]
[1768578493822,1.88632624,3258.8,3256.7,3.37038166]
[1768578494022,0.88622385,3258.7,3256.7,3.37038166]
[1768578494222,0.88622385,3258.6,3256.7,3.37038166]
[1768578494422,0.88622385,3258.5,3256.7,3.37038166]
[1768578494623,0.88622385,3258.4,3256.7,3.37038166]
[1768578494828,1.88632624,3258.6,3256.7,3.37038166]
[1768578495028,0.88635708,3258.5,3256.7,3.37038166]
[1768578495221,0.88635708,3258.4,3256.7,3.37038166]
[1768578495423,2.03980624,3258.9,3256.7,3.37038166]
[1768578495622,0.88640844,3258.8,3256.7,3.37038166]
[1768578495923,0.88640844,3258.7,3256.7,3.37038166]
[1768578496118,1.88632624,3259.5,3257.0,3.36717453]
[1768578496324,0.88043767,3259.4,3257.5,3.36717453]
[1768578496622,0.15345,3259.5,3257.5,3.36717453]
[1768578497026,0.00376721,3259.6,3257.7,3.36717453]
[1768578497327,1.89009345,3259.6,3257.9,3.36717453]
[1768578497922,0.00376721,3259.6,3257.9,3.36717453]
[1768578498325,0.00376721,3259.6,3257.9,3.59719402]
[1768578499130,0.00376721,3259.6,3257.9,3.36717453]
[1768578499529,1.89009345,3259.6,3257.9,3.36717453]
[1768578501037,0.00376721,3259.6,3257.9,3.36717453]
[1768578501238,0.00376721,3259.6,3257.6,0.15354]
[1768578501239,1.89009345,3259.6,3257.6,3.48847463]
[1768578501429,0.00376721,3259.6,3257.6,3.33493463]
[1768578501632,1.88632624,3259.4,3257.6,3.33493463]
[1768578502030,1.88632624,3259.0,3256.9,3.33493463]
[1768578502525,2.03978624,3259.3,3256.9,3.48850463]
[1768578503032,1.88632624,3259.0,3256.9,3.48850463]
[1768578503430,0.15347,3259.1,3256.9,3.48850463]
[1768578503821,1.88632624,3259.4,3257.1,3.48849463]
[1768578504022,0.00376721,3259.6,3257.4,3.48847463]
[1768578504337,2.03752345,3259.9,3257.6,3.33493463]
[1768578504529,0.15119721,3259.9,3257.8,3.33493463]
[1768578505333,0.15421226,3259.9,3257.8,3.33493463]
[1768578505535,0.15421226,3259.9,3258.0,3.33493463]
[1768578505536,0.00301505,3259.9,3258.0,3.33493463]
[1768578507134,1.88632624,3259.4,3258.0,3.33493463]
[1768578507445,0.00301505,3259.9,3258.0,3.33493463]
[1768578508443,0.00301505,3259.9,3258.1,3.33493463]
[1768578508643,0.00301505,3259.9,3258.1,6.57393463]
[1768578508847,0.15338,3261.0,3258.5,3.42968171]
[1768578509031,0.88495839,3260.9,3258.5,3.58317171]
[1768578509238,0.15338,3261.0,3259.0,3.42968171]
[1768578509541,0.15338,3261.0,3258.5,0.15349]
[1768578509542,0.15342,3260.1,3258.5,3.42968171]
[1768578509740,0.15666477,3260.1,3258.5,3.42968171]
[1768578510040,0.00324477,3260.1,3258.5,5.31863878]
[1768578510231,3.58604394,3261.5,3258.8,3.42968171]
[1768578510435,0.88493275,3261.4,3259.2,3.42968171]
[1768578510633,0.88493473,3261.3,3259.2,3.42968171]
[1768578510833,0.15338,3261.0,3259.4,3.42968171]
[1768578511032,0.15338,3260.9,3259.4,3.42968171]
[1768578511233,0.15655629,3260.9,3259.4,3.42968171]
[1768578511938,0.00317629,3260.9,3259.4,3.42968171]
[1768578512440,1.88337053,3261.4,3259.4,3.42968171]
[1768578512637,0.15335,3261.6,3259.4,3.42968171]
[1768578512843,1.88632624,3261.6,3259.6,3.42968171]
[1768578513450,1.89030903,3261.6,3259.6,3.42968171]
[1768578513842,0.00398279,3261.6,3259.6,3.42968171]
[1768578514042,0.00398279,3261.6,3259.7,3.42968171]
[1768578514647,0.00398279,3261.6,3260.0,10.0]
[1768578514849,0.00398279,3261.6,3260.1,3.42968171]
[1768578515149,0.00398279,3261.6,3260.1,6.49968171]
[1768578515452,0.00398279,3261.6,3260.1,3.42968171]
[1768578518158,0.15733279,3261.6,3260.0,10.0]
[1768578518844,1.88632624,3261.0,3260.0,10.0]
[1768578519251,2.03970624,3261.0,3260.0,10.0]
[1768578520258,0.15338,3261.0,3260.0,10.0]
[1768578520550,5.47237018,3261.0,3258.6,3.42968171]
[1768578520755,2.03974624,3260.1,3258.6,3.42968171]
[1768578521054,0.15343,3259.9,3258.6,3.42968171]
[1768578524458,3.49867812,3260.9,3258.6,3.42968171]
[1768578524660,0.1534,3260.6,3258.6,3.42968171]
[1768578524956,1.03318447,3260.5,3258.6,3.42968171]
[1768578525147,0.87978447,3260.4,3258.6,3.42968171]
[1768578526351,0.15342,3260.1,3258.6,3.42968171]
[1768578527647,0.15342,3260.0,3258.6,3.42968171]
[1768578528361,0.15343,3259.9,3258.6,3.42968171]
[1768578529954,1.88439256,3260.9,3258.1,3.42968171]
[1768578529955,0.15344,3259.6,3258.1,3.42968171]
[1768578530353,1.88439256,3260.3,3257.2,3.42968171]
[1768578530558,3.066,3260.8,3257.2,3.42968171]
[1768578530559,0.15349,3258.7,3257.2,3.42968171]
[1768578531559,0.15644545,3258.7,3257.2,3.4335377]
[1768578532963,0.15349,3258.6,3257.2,3.4335377]
[1768578533163,0.15349,3258.5,3257.2,3.4335377]
[1768578535364,0.1535,3258.4,3257.2,3.4335377]
[1768578535565,0.00295545,3258.7,3257.2,3.4335377]
[1768578535960,0.00295545,3258.7,3257.4,3.55178766]
[1768578536163,0.15347,3259.1,3257.4,3.55178766]
[1768578536664,0.15347,3259.1,3257.6,3.55178766]
[1768578536966,1.88439256,3259.8,3257.8,3.55178766]
[1768578537165,0.15348,3258.8,3257.8,3.55178766]
[1768578537862,0.15349,3258.6,3257.8,3.55178766]
[1768578538058,1.88698802,3259.8,3257.8,3.55178766]
[1768578538256,0.1535,3258.4,3257.8,3.55178766]
[1768578538562,0.1535,3258.4,3257.3,3.55178766]
[1768578540166,1.88698802,3259.8,3257.3,3.55178766]
[1768578540469,0.15349,3258.6,3257.3,3.55178766]
[1768578540664,0.15349,3258.5,3257.3,3.55178766]
[1768578541059,1.94612266,3259.8,3257.3,3.55178766]
[1768578541255,1.88439256,3259.2,3257.3,3.55178766]
[1768578541462,3.58041898,3258.9,3255.8,0.15362]
[1768578541664,3.58041898,3258.9,3256.0,0.15361]
[1768578541665,0.15353,3257.8,3256.0,0.15361]
[1768578541972,0.15357,3256.9,3255.1,3.62824357]
[1768578542163,0.15359,3256.4,3254.8,40.8]
[1768578542362,0.15359,3256.4,3254.9,6.286]
[1768578542672,0.15622113,3256.4,3254.9,6.28927485]
[1768578543469,0.15622113,3256.4,3255.0,3.55178766]
[1768578543957,0.15355,3257.4,3255.3,3.70542766]
[1768578544164,0.15357,3256.9,3255.5,3.55178766]
[1768578544871,0.15358,3256.6,3255.5,3.55178766]
[1768578546160,0.15358,3256.6,3254.9,0.00327485]
[1768578546161,0.15361,3256.0,3254.9,3.55506251]
[1768578546766,0.00252479,3256.9,3254.9,3.55506251]
[1768578547368,0.15362,3256.0,3254.9,3.55506251]
[1768578547873,0.00252479,3256.9,3254.9,3.55506251]
[1768578547874,0.15359,3256.5,3254.9,3.55506251]
[1768578548277,0.00252479,3256.9,3254.9,3.55506251]
[1768578548667,0.15361,3256.1,3254.9,3.55506251]
[1768578548866,0.15362,3255.8,3254.9,3.55506251]
[1768578549068,0.15361,3256.0,3254.9,0.00327485]
[1768578549275,0.15362,3255.9,3254.9,0.00327485]
[1768578549968,0.15364,3255.3,3254.3,3.55178766]
[1768578550366,1.88439256,3256.7,3254.3,3.55178766]
[1768578550569,0.87543934,3256.6,3254.3,3.55178766]
[1768578550872,0.87543934,3256.5,3254.3,3.55549463]
[1768578551079,0.15364,3255.4,3254.3,3.55549463]
[1768578552975,0.00252479,3256.9,3254.3,3.55549463]
[1768578553170,0.00252479,3256.9,3254.4,3.55178766]
[1768578553368,0.15362,3256.0,3254.4,3.55178766]
[1768578553675,0.15362,3255.9,3254.4,3.55178766]
[1768578553875,0.15359,3256.5,3254.4,3.55178766]
[1768578554079,0.00252479,3256.9,3254.4,3.55178766]
[1768578554670,1.88439256,3256.7,3254.4,3.55178766]
[1768578554873,0.15364,3255.4,3254.4,3.55178766]
[1768578555975,1.88439256,3256.7,3254.4,3.55178766]
[1768578556161,0.15365,3255.3,3254.4,3.55178766]
[1768578557179,1.88439256,3256.1,3254.4,3.55178766]
[1768578557478,0.15367,3254.7,3253.9,3.55178766]
[1768578557776,1.88439256,3256.1,3253.9,3.55178766]
[1768578557974,0.15367,3254.8,3253.9,3.55178766]
[1768578558273,0.15368,3254.7,3253.9,3.55178766]
[1768578558465,1.88439256,3255.9,3253.9,3.55540761]
[1768578558666,0.15365,3255.1,3253.9,3.55540761]
[1768578558861,5.69787846,3256.4,3253.9,3.55540761]
[1768578559065,0.15367,3254.8,3253.9,3.55540761]
[1768578559262,0.15368,3254.7,3253.9,3.55540761]
[1768578559671,6.64822296,3256.3,3253.9,3.55540761]
[1768578559876,0.87512998,3256.2,3253.9,3.55540761]
[1768578560067,0.15366,3255.1,3253.9,3.55540761]
[1768578560268,3.57522296,3256.3,3253.9,3.55540761]
[1768578560477,0.15366,3255.0,3253.9,3.55540761]
[1768578561069,1.88439256,3256.6,3253.9,3.55540761]
[1768578561373,0.15362,3255.9,3254.2,3.59932839]
[1768578561583,0.15359,3256.4,3254.4,3.59932839]
[1768578561767,0.1536,3256.3,3254.5,3.206]
[1768578562070,1.88439256,3257.2,3254.6,3.59932839]
[1768578562277,1.88439256,3256.6,3254.6,3.59932839]
[1768578562784,0.15362,3255.9,3254.6,3.59932839]
[1768578562975,1.88439256,3256.6,3254.6,3.59932839]
[1768578563176,0.15364,3255.4,3254.6,3.59932839]
[1768578563370,0.8758784,3256.5,3253.9,0.00361995]
[1768578563371,0.15366,3255.1,3254.0,3.59932839]
[1768578563673,1.88439256,3256.0,3254.0,3.59932839]
[1768578564266,0.15366,3255.0,3254.0,3.59932839]
[1768578564977,0.15366001,3255.0,3254.0,3.59932839]
[1768578565178,0.15364,3255.4,3254.0,3.59932839]
[1768578566681,0.15366,3255.1,3254.0,3.59932839]
[1768578567668,0.15367,3254.8,3254.0,3.59932839]
[1768578567869,0.15367,3254.7,3253.9,0.00361995]
[1768578571374,0.15365,3255.3,3253.9,3.49038829]
[1768578572176,1.61428556,3256.3,3253.9,3.49038829]
[1768578572383,5.50988381,3256.6,3253.9,3.49038829]
[1768578572384,0.88173246,3256.2,3253.9,3.49038829]
[1768578572676,0.88173246,3256.1,3253.9,3.49038829]
[1768578572881,0.88173246,3256.0,3253.9,3.49038829]
[1768578573084,1.61428556,3256.6,3253.9,3.49038829]
[1768578573282,0.15362,3255.8,3253.9,3.64409829]
[1768578573480,0.15363,3255.7,3253.9,3.23132995]
[1768578573787,0.15365,3255.2,3254.0,3.48676834]
[1768578575182,0.15365,3255.1,3254.0,3.48676834]
[1768578575380,0.15366,3255.0,3254.0,3.48676834]
[1768578575579,0.15366,3255.0,3253.9,0.00361995]
[1768578575580,1.61428556,3255.7,3253.9,0.00361995]
[1768578575793,0.88300852,3255.6,3253.9,0.00361995]
[1768578575984,3.35271791,3255.9,3253.9,0.00361995]
[1768578575985,0.88300852,3255.5,3253.9,0.00361995]
[1768578576188,0.15367,3254.8,3253.9,0.00361995]
[1768578577186,1.61428556,3255.6,3253.9,3.49038829]
[1768578577485,0.8832245,3255.5,3253.9,3.49038829]
[1768578577684,0.15365,3255.3,3253.9,3.49038829]
[1768578578080,1.61428556,3256.1,3253.9,3.49038829]
[1768578578279,0.15362,3255.9,3253.9,3.64409829]
[1768578578487,0.88337636,3255.8,3253.9,3.64409829]
[1768578579285,1.03699636,3255.8,3253.9,3.64409829]
[1768578579488,0.15362,3255.8,3254.1,3.48676834]
[1768578581281,1.61428556,3256.7,3254.1,3.64046834]
[1768578581481,2.77289958,3256.6,3254.1,3.64046834]
[1768578581685,0.88426219,3256.5,3254.9,3.48676834]
[1768578581987,0.00252479,3256.9,3255.1,3.48676834]
[1768578582189,0.15355,3257.4,3255.5,3.64039834]
[1768578582494,0.15355,3257.4,3255.5,3.48676834]
[1768578582495,0.15356,3257.1,3255.5,3.48676834]
[1768578583194,0.15631538,3257.1,3255.5,3.48676834]
[1768578583391,1.88863739,3257.0,3255.5,3.48676834]
[1768578583593,1.88863739,3257.0,3254.5,3.48676834]
[1768578583594,1.88863739,3256.5,3254.5,3.48676834]
[1768578583786,3.35271791,3257.0,3254.5,3.48676834]
[1768578583787,0.87867663,3256.4,3254.5,3.48676834]
[1768578583987,0.15359,3256.5,3254.5,3.48676834]
[1768578584180,0.15359,3256.5,3254.5,3.64044834]
[1768578584990,0.15359,3256.5,3254.7,3.48676834]
[1768578585297,0.00275538,3257.1,3254.7,3.48676834]
[1768578585487,0.15031938,3257.3,3255.2,3.48676834]
[1768578585796,0.15352,3258.0,3255.6,5.37540573]
[1768578585988,0.15353,3257.8,3255.8,3.48676834]
[1768578586191,0.15353,3257.8,3256.0,3.48676834]
[1768578586489,0.15354,3257.6,3256.1,6.68176834]
[1768578586684,0.15354,3257.6,3256.2,3.48676834]
[1768578586990,0.15354,3257.6,3256.2,3.49016716]
[1768578587189,0.00363041,3257.8,3256.2,3.49016716]
[1768578587585,0.1535,3258.3,3256.2,3.49016716]
[1768578587987,0.15351,3258.2,3256.2,3.49016716]
[1768578588291,0.15351,3258.2,3256.4,3.48676834]
[1768578588491,0.1574697,3258.2,3256.4,3.48676834]
[1768578589896,0.1574697,3258.2,3256.6,3.48676834]
[1768578590193,0.0039597,3258.2,3256.6,3.48676834]
[1768578590395,0.15347,3258.9,3256.6,3.64034834]
[1768578590794,0.15348,3258.8,3256.8,3.48676834]
[1768578591294,0.15563402,3258.8,3256.8,3.48676834]
[1768578591894,0.15349,3258.7,3256.8,3.48676834]
[1768578592098,0.15349,3258.7,3257.0,3.41131215]
[1768578592500,0.15349,3258.6,3257.0,3.41131215]
[1768578593393,0.15349,3258.6,3257.2,3.41131215]
[1768578593592,0.14749,3258.6,3257.2,3.41131215]
[1768578593999,0.14749,3258.6,3257.3,3.2]
[1768578594203,0.14749,3258.6,3256.7,0.24264424]
[1768578594204,0.00215402,3258.8,3257.4,3.41131215]
[1768578594501,0.00215402,3258.8,3257.4,6.61031215]
[1768578595791,0.00215402,3258.8,3257.5,3.41131215]
[1768578596105,0.15343,3259.9,3257.8,3.41131215]
[1768578596307,1.88863739,3260.3,3258.1,3.41131215]
[1768578596803,3.27211069,3260.5,3258.3,3.41131215]
[1768578597007,0.15343,3260.0,3258.5,3.41131215]
[1768578597205,0.15343,3260.0,3258.5,3.41347969]
[1768578597409,3.27607875,3260.5,3258.5,3.41347969]
[1768578597599,0.00396806,3260.5,3258.5,3.41347969]
[1768578597795,0.00396806,3260.5,3258.8,5.29994954]
[1768578598102,0.00396806,3260.5,3258.9,3.41131215]
[1768578598698,0.00396806,3260.5,3259.2,3.41131215]
[1768578599106,0.15334,3261.7,3259.2,3.41131215]
[1768578599411,0.15335,3261.5,3259.2,3.41131215]
[1768578599907,1.88863739,3261.3,3259.2,3.41131215]
[1768578600102,0.00331099,3261.3,3259.2,3.41131215]
[1768578600294,0.15339,3260.7,3258.6,3.41131215]
[1768578600499,0.00331099,3261.3,3259.0,3.41131215]
[1768578600701,0.00331099,3261.3,3258.5,3.19816754]
[1768578600702,0.1534,3260.6,3258.5,3.41347969]
[1768578601010,1.88863739,3260.5,3258.5,3.41347969]
[1768578601412,0.15341,3260.3,3258.5,3.41347969]
[1768578601599,3.27211069,3260.9,3258.5,3.41347969]
[1768578602402,0.00331099,3261.3,3259.2,3.41131215]
[1768578602594,0.00331099,3261.3,3259.4,3.41131215]
[1768578602794,0.00331099,3261.3,3259.4,3.56476215]
[1768578603303,1.89194838,3261.3,3259.4,3.41131215]
[1768578603501,0.00331099,3261.3,3259.4,3.41131215]
[1768578604100,0.15337,3261.2,3259.4,3.41131215]
[1768578604302,1.88863739,3261.1,3259.6,3.41131215]
[1768578604505,1.88863739,3261.1,3259.0,3.41131215]
[1768578604910,1.88863739,3260.6,3258.5,3.41347969]
[1768578605412,1.88863739,3260.1,3258.5,0.00216754]
[1768578605703,0.15343,3259.8,3258.5,0.00216754]
[1768578607108,4.88639625,3262.8,3259.6,3.41131215]
[1768578607405,0.15334,3261.8,3259.6,3.41131215]
[1768578607606,3.27211069,3262.3,3259.8,3.41131215]
[1768578607913,3.42543069,3262.3,3259.8,3.41131215]
[1768578608207,0.15332,3262.3,3260.0,3.41131215]
[1768578609105,0.15601134,3262.3,3260.3,3.41131215]
[1768578611412,2.04195739,3262.2,3260.3,3.41131215]
[1768578611815,0.15332,3262.1,3260.3,3.41131215]
[1768578612010,1.88863739,3261.7,3259.7,6.60431215]
[1768578612511,1.88863739,3261.7,3259.8,3.41131215]
[1768578612711,0.15334,3261.8,3259.8,3.41131215]
[1768578613013,0.00269134,3262.3,3259.8,3.41131215]
[1768578613604,2.04196739,3262.0,3259.8,3.41131215]
[1768578613911,5.11096739,3262.0,3259.8,3.41131215]
[1768578614111,2.04196739,3262.0,3259.8,3.41131215]
[1768578615017,0.15333,3262.0,3259.8,3.41131215]
[1768578615408,2.04196739,3262.0,3259.8,3.41131215]
[1768578616415,1.88863739,3261.5,3259.8,3.41131215]
[1768578617110,0.15339,3260.8,3259.2,3.41131215]
[1768578617417,0.15339,3260.8,3258.2,3.187]
[1768578617607,2.04203739,3260.5,3258.6,3.41131215]
[1768578617913,2.03603039,3260.5,3258.6,3.41131215]
[1768578618210,0.1534,3260.5,3258.6,3.41131215]
[1768578619007,3.27211069,3261.1,3258.6,3.41131215]
[1768578619205,1.02516118,3261.0,3258.6,3.41131215]
[1768578619405,0.87178118,3260.9,3258.6,3.41131215]
[1768578619910,2.76041857,3260.8,3258.6,3.41131215]
[1768578620116,1.88863739,3260.8,3258.6,3.41131215]
[1768578620320,0.87251567,3260.7,3258.6,3.41131215]
[1768578620614,1.88863739,3260.3,3258.6,3.41131215]
[1768578620915,0.15342,3260.2,3258.6,3.41131215]
[1768578621720,0.15338,3260.9,3259.0,3.44223595]
[1768578622506,1.88863739,3260.7,3259.0,3.44223595]
[1768578622813,1.88863739,3260.7,3258.5,3.44440349]
[1768578622814,1.88863739,3260.2,3258.5,3.44440349]
[1768578623008,0.15343,3260.0,3258.5,3.44440349]
[1768578623216,0.15344,3259.6,3258.5,0.00216754]
[1768578623410,0.15345,3259.5,3258.5,0.00216754]
[1768578623614,1.88863739,3259.7,3258.5,0.00216754]
[1768578623818,0.87336687,3259.6,3258.5,0.00216754]